bitfinex/quotes_SOLUSD_20240813
["timestamp","ask_amount","ask_price","bid_price","bid_amount"]
[1723519836940,5.5302,144.66,144.6,13.8304]
[1723519837089,40.1,144.7,144.59,0.12549]
[1723519837407,40.1,144.7,144.64,5.5305]
[1723519837799,40.1,144.7,144.65,5.5304]
[1723519838001,5.5282,144.72,144.68,5.5294]
[1723519838314,6.80303935,144.71,144.67,13.8245]
[1723519838500,1.27463935,144.7,144.67,13.8245]
[1723519838703,5.5284,144.71,144.67,19.3542]
[1723519839206,40.1,144.73,144.67,19.3542]
[1723519839207,5.528,144.72,144.67,19.3542]
[1723519839407,5.5283,144.71,144.67,19.3542]
[1723519841515,6.80333935,144.7,144.62,16.2334]
[1723519841815,5.5287,144.7,144.62,16.2334]
[1723519842002,5.5287,144.7,144.65,5.5302]
[1723519842194,5.5283,144.71,144.63,0.12549]
[1723519842395,5.5283,144.71,144.66,5.5299]
[1723519842611,1.27463935,144.7,144.66,5.5299]
[1723519843006,1.27463935,144.7,144.64,13.8271]
[1723519843213,5.5292,144.69,144.64,19.3577]
[1723519843390,5.5292,144.69,144.65,5.5305]
[1723519843589,5.5287,144.7,144.65,5.5305]
[1723519843820,5.5283,144.71,144.66,5.5301]
[1723519844515,5.5283,144.71,144.67,5.5297]
[1723519844706,25.528,144.72,144.67,5.5297]
[1723519845218,6.0095,144.75,144.68,13.8231]
[1723519845524,20.0621,144.78,144.7,13.8212]
[1723519845823,5.5264,144.76,144.71,5.5281]
[1723519846421,1.27463935,144.76,144.7,13.8212]
[1723519846632,5.5275,144.73,144.7,13.8212]
[1723519846803,5.5275,144.73,144.69,5.5287]
[1723519847429,1.27463935,144.72,144.69,5.5287]
[1723519847631,5.5275,144.73,144.69,5.5287]
[1723519847824,1.27463935,144.72,144.69,5.5287]
[1723519848129,5.5275,144.73,144.69,5.5287]
[1723519848704,5.5268,144.75,144.7,5.5283]
[1723519848902,5.5274,144.74,144.69,5.5289]
[1723519849122,6.2476,144.78,144.67,0.12549]
[1723519849315,35.7716,144.81,144.68,15.5656]
[1723519849316,20.0,144.77,144.68,15.5656]
[1723519849638,25.526,144.77,144.72,5.5278]
[1723519849925,20.0,144.77,144.73,5.5274]
[1723519850127,20.0,144.77,144.69,0.12549]
[1723519850336,5.5253,144.79,144.75,5.5264]
[1723519850824,5.5253,144.79,144.74,5.527]
[1723519851703,5.5249,144.8,144.75,13.8164]
[1723519851903,6.3146,144.82,144.76,5.5261]
[1723519851904,25.5245,144.81,144.76,5.5261]
[1723519852420,5.5249,144.8,144.76,5.5261]
[1723519852629,5.5253,144.79,144.75,19.343]
[1723519853210,5.527,144.75,144.7,5.5283]
[1723519853409,1.27463935,144.74,144.71,5.5282]
[1723519853738,5.526,144.77,144.73,5.5274]
[1723519855024,25.5257,144.78,144.74,5.527]
[1723519856017,5.526,144.77,144.72,13.8195]
[1723519856221,60.1,144.76,144.68,15.5656]
[1723519856424,5.5288,144.7,144.66,19.3551]
[1723519856936,5.5283,144.71,144.67,5.5297]
[1723519857099,5.5291,144.69,144.66,13.8251]
[1723519857428,5.5291,144.69,144.64,15.3808]
[1723519857429,1.27463935,144.68,144.64,15.3808]
[1723519857630,0.25098,144.75,144.64,15.3808]
[1723519857816,5.5281,144.72,144.67,5.5295]
[1723519858020,20.0,144.71,144.67,5.5295]
[1723519858219,20.0,144.71,144.68,5.5292]
[1723519858417,5.5275,144.73,144.64,15.3808]
[1723519858623,5.5266,144.76,144.71,5.528]
[1723519858907,5.5261,144.77,144.72,5.5276]
[1723519859107,5.5257,144.78,144.73,5.5273]
[1723519859607,6.3179,144.81,144.71,0.12549]
[1723519859808,5.5249,144.8,144.75,5.5264]
[1723519860237,5.5245,144.81,144.77,5.5259]
[1723519860551,6.3179,144.85,144.76,1.38138067]
[1723519860826,5.5245,144.81,144.76,5.5263]
[1723519862308,5.5248,144.8,144.75,13.8162]
[1723519862514,5.5252,144.79,144.75,13.8162]
[1723519862844,5.5257,144.78,144.72,29.2002]
[1723519863016,5.5255,144.79,144.75,5.5266]
[1723519863220,54.03619,144.82,144.72,29.2002]
[1723519863437,5.5264,144.76,144.72,34.728]
[1723519863845,6.80143935,144.75,144.72,15.3808]
[1723519864148,5.5285,144.71,144.68,15.5977]
[1723519864445,5.5285,144.71,144.66,26.0097]
[1723519864625,5.5287,144.7,144.66,13.8253]
[1723519864820,60.1,144.74,144.66,13.8253]
[1723519865223,5.5287,144.7,144.66,19.3554]
[1723519865412,5.5287,144.7,144.66,13.8253]
[1723519865806,5.5291,144.69,144.64,21.1286]
[1723519866014,1.27463935,144.72,144.64,21.1286]
[1723519866015,5.5294,144.68,144.64,21.1286]
[1723519866522,40.1,144.71,144.65,5.5304]
[1723519866724,45.0,144.73,144.65,13.826]
[1723519866935,20.0,144.72,144.65,13.826]
[1723519867346,20.0,144.72,144.66,5.5301]
[1723519867347,5.5286,144.71,144.66,5.5301]
[1723519867529,5.5287,144.7,144.66,5.5301]
[1723519867731,40.22549,144.71,144.62,20.4833]
[1723519867922,5.5292,144.69,144.64,5.5308]
[1723519868250,6.80413935,144.68,144.62,20.4833]
[1723519868545,40.1,144.68,144.62,13.829]
[1723519868729,21.27463935,144.67,144.61,5.5318]
[1723519868934,5.5309,144.65,144.6,20.6956]
[1723519869233,6.80553935,144.65,144.6,20.6956]
[1723519869446,5.531,144.64,144.6,20.6956]
[1723519869619,5.531,144.64,144.6,5.5324]
[1723519869823,6.80563935,144.64,144.59,5.5327]
[1723519870038,5.5316,144.63,144.58,19.9676]
[1723519870236,5.5319,144.62,144.58,13.8326]
[1723519870440,6.80653935,144.62,144.58,13.8326]
[1723519870630,13.95149,144.66,144.55,19.37]
[1723519870631,5.5325,144.6,144.55,19.37]
[1723519870835,1.27463935,144.6,144.54,5.5346]
[1723519871148,5.535,144.54,144.46,62.641]
[1723519871347,5.5344,144.55,144.5,5.5363]
[1723519871531,40.1,144.56,144.46,22.541]
[1723519871730,40.1,144.56,144.48,5.537]
[1723519871731,5.5354,144.53,144.48,5.537]
[1723519871936,5.5349,144.54,144.49,5.5366]
[1723519872121,0.12549,144.54,144.48,13.8425]
[1723519872330,20.0,144.53,144.48,13.8425]
[1723519872622,0.37647,144.54,144.48,13.8425]
[1723519873047,1.65110935,144.54,144.48,13.8425]
[1723519873827,5.5358,144.52,144.48,13.8425]
[1723519874020,1.27463935,144.51,144.48,13.8425]
[1723519874743,5.5358,144.52,144.48,13.8425]
[1723519874949,5.5358,144.52,144.41,40.9292731]
[1723519875230,5.5358,144.52,144.44,13.8456]
[1723519875425,20.0,144.55,144.45,0.12549]
[1723519875621,20.0,144.58,144.46,0.12549]
[1723519875838,0.12549,144.57,144.49,13.8414]
[1723519876020,0.25098,144.57,144.49,13.8414]
[1723519876226,5.534,144.57,144.49,13.8414]
[1723519876451,6.3373,144.59,144.54,5.5347]
[1723519876452,5.5329,144.59,144.54,5.5347]
[1723519877124,5.5326,144.6,144.52,13.8388]
[1723519877346,41.37463935,144.62,144.55,5.5343]
[1723519877544,5.5321,144.61,144.55,5.5343]
[1723519877851,1.27463935,144.66,144.5,16.76019]
[1723519877852,5.5317,144.63,144.51,0.12549]
[1723519878047,5.5317,144.63,144.51,45.37647]
[1723519878255,5.5317,144.63,144.52,0.12549]
[1723519878452,5.5317,144.63,144.58,5.5332]
[1723519878635,5.5329,144.59,144.52,0.12549]
[1723519878842,35.10103935,144.66,144.55,5.5344]
[1723519879156,40.1,144.64,144.52,0.12549]
[1723519879334,0.12549,144.62,144.55,13.8352]
[1723519879723,25.5315,144.63,144.58,5.5331]
[1723519880145,25.5315,144.63,144.55,13.8352]
[1723519880146,5.5321,144.61,144.56,5.5339]
[1723519880448,20.0,144.63,144.55,13.8352]
[1723519880641,20.0,144.64,144.55,13.8352]
[1723519880841,21.27463935,144.64,144.55,13.8352]
[1723519881045,5.5328,144.59,144.54,5.5347]
[1723519881221,1.27463935,144.58,144.54,5.5347]
[1723519881842,5.5328,144.59,144.54,5.5347]
[1723519882551,5.5328,144.59,144.52,13.96409]
[1723519882552,5.5333,144.58,144.53,5.5351]
[1723519882759,6.80833935,144.57,144.52,19.3741]
[1723519882958,5.5337,144.57,144.52,19.3741]
[1723519883959,5.5333,144.58,144.53,5.5351]
[1723519884337,5.5328,144.6,144.55,5.5343]
[1723519884547,65.0,144.59,144.52,13.8386]
[1723519885066,70.5331,144.59,144.54,5.5347]
[1723519886373,5.5332,144.58,144.54,5.5347]
[1723519886670,0.12549,144.57,144.48,13.8418]
[1723519886875,40.22549,144.56,144.48,19.3788]
[1723519887175,5.5356,144.52,144.48,13.8418]
[1723519887345,1.27463935,144.51,144.47,5.5374]
[1723519887975,20.0,144.6,144.47,40.1]
[1723519888268,1.27463935,144.6,144.47,40.1]
[1723519888482,1.27463935,144.6,144.51,5.5359]
[1723519888645,1.27463935,144.6,144.47,40.1]
[1723519888646,20.0,144.58,144.47,13.8434]
[1723519888849,5.5348,144.54,144.49,5.5366]
[1723519889564,5.5348,144.54,144.45,15.7191]
[1723519889565,5.5366,144.5,144.45,15.7191]
[1723519889750,5.5359,144.51,144.46,5.5377]
[1723519890066,5.5356,144.52,144.47,5.5371]
[1723519890270,45.12549,144.51,144.46,13.8439]
[1723519890442,45.12549,144.51,144.41,0.8292731]
[1723519890443,0.12549,144.5,144.41,0.8292731]
[1723519890642,0.12549,144.5,144.41,6.3686731]
[1723519890643,5.5378,144.46,144.41,6.3686731]
[1723519890846,1.27463935,144.45,144.41,6.3686731]
[1723519891146,60.47647,144.5,144.41,0.8292731]
[1723519891367,0.12549,144.48,144.41,0.8292731]
[1723519891672,25.5374,144.48,144.43,5.5387]
[1723519891864,25.5374,144.48,144.42,13.8478]
[1723519892170,20.0,144.48,144.42,13.8478]
[1723519892472,13.8383,144.53,144.42,13.8478]
[1723519892473,20.0,144.49,144.42,13.8478]
[1723519892663,20.0,144.52,144.42,13.8478]
[1723519892971,5.5367,144.49,144.44,19.3843]
[1723519893773,5.5375,144.47,144.42,5.539]
[1723519894073,50.5371,144.48,144.44,5.5386]
[1723519894287,46.27463935,144.47,144.41,6.3687731]
[1723519894458,5.66329,144.46,144.41,6.3687731]
[1723519894775,45.0,144.45,144.41,6.3687731]
[1723519895551,45.0,144.45,144.41,0.8292731]
[1723519895782,5.5393,144.43,144.41,0.8292731]
[1723519896086,1.27463935,144.42,144.41,0.8292731]
[1723519896579,6.81393935,144.42,144.41,0.8292731]
[1723519896773,51.81393935,144.42,144.41,0.8292731]
[1723519897174,45.0,144.42,144.41,0.8292731]
[1723519897462,50.539,144.43,144.41,0.8292731]
[1723519898962,6.81393935,144.42,144.41,0.8292731]
[1723519899160,130.89028,144.42,144.3,23.69024155]
[1723519899383,130.89028,144.42,144.27,0.8292731]
[1723519899384,40.1,144.34,144.27,0.8292731]
[1723519899589,5.5436,144.31,144.27,0.8292731]
[1723519899756,45.6424,144.34,144.29,5.5443]
[1723519899959,65.0,144.33,144.28,13.8614]
[1723519900164,1.27463935,144.32,144.28,13.8614]
[1723519900394,1.27463935,144.31,144.28,13.8614]
[1723519900573,65.0,144.33,144.28,13.8614]
[1723519900767,1.40012935,144.32,144.27,6.3743731]
[1723519900959,1.40012935,144.32,144.27,0.8292731]
[1723519900960,0.12549,144.32,144.27,0.8292731]
[1723519901161,65.0,144.33,144.27,0.8292731]
[1723519901368,1.65110935,144.32,144.27,0.8292731]
[1723519901554,0.12549,144.32,144.27,0.8292731]
[1723519901761,5.5432,144.32,144.28,5.5447]
[1723519901976,70.5429,144.33,144.28,5.5447]
[1723519902359,5.5433,144.32,144.27,14.6916731]
[1723519902678,6.81793935,144.32,144.27,20.2366731]
[1723519902979,70.5429,144.33,144.27,14.6916731]
[1723519903150,5.5429,144.33,144.28,5.5444]
[1723519903350,5.5436,144.32,144.28,5.5447]
[1723519903582,40.1,144.34,144.27,0.8292731]
[1723519903888,40.1,144.37,144.29,19.4044]
[1723519904088,40.1,144.37,144.28,5.5446]
[1723519904089,5.5429,144.33,144.28,5.5446]
[1723519904383,25.542,144.36,144.31,5.5435]
[1723519905058,20.0,144.36,144.31,5.5435]
[1723519905464,1.27463935,144.35,144.31,5.5435]
[1723519906281,5.5417,144.36,144.31,5.5435]
[1723519907179,40.1,144.4,144.32,13.8573]
[1723519907385,20.0,144.39,144.32,13.8573]
[1723519907680,1.27463935,144.39,144.32,13.8573]
[1723519907851,5.5421,144.35,144.31,5.5432]
[1723519908058,40.1,144.37,144.29,13.8604]
[1723519908257,5.5432,144.32,144.28,5.5447]
[1723519908506,5.5427,144.34,144.28,13.8612]
[1723519908993,5.5422,144.35,144.3,5.5439]
[1723519909186,1.40012935,144.36,144.29,5.5443]
[1723519909372,0.25098,144.35,144.28,13.8612]
[1723519909681,5.5436,144.31,144.27,0.8292731]
[1723519909887,5.5436,144.31,144.27,6.3742731]
[1723519910061,5.544,144.3,144.27,0.8292731]
[1723519910259,5.5436,144.31,144.27,0.8292731]
[1723519910571,34.58288944,144.41,144.27,0.8292731]
[1723519910890,34.58288944,144.41,144.31,0.24666977]
[1723519910891,5.5426,144.34,144.31,0.24666977]
[1723519911270,40.1,144.39,144.31,0.24666977]
[1723519911470,5.5417,144.36,144.31,5.78996977]
[1723519911676,5.5417,144.36,144.32,5.5432]
[1723519911868,5.5414,144.37,144.32,5.5432]
[1723519912065,5.5408,144.39,144.34,5.5421]
[1723519912379,20.0,144.38,144.31,6.58716977]
[1723519912686,20.0,144.38,144.31,0.24666977]
[1723519912687,40.1,144.36,144.31,0.24666977]
[1723519913299,45.25098,144.35,144.31,0.24666977]
[1723519913475,0.25098,144.34,144.31,0.24666977]
[1723519913788,5.5432,144.32,144.31,0.24666977]
[1723519913985,50.5432,144.32,144.31,0.24666977]
[1723519914291,50.79418,144.32,144.31,0.24666977]
[1723519914500,72.19430935,144.32,144.31,0.24666977]
[1723519914681,5.5447,144.28,144.27,0.8292731]
[1723519914992,45.89568,144.28,144.27,0.8292731]
[1723519915199,66.14666,144.28,144.27,0.8292731]
[1723519915495,5.5461,144.25,144.21,16.6069]
[1723519915707,6.82123935,144.24,144.2,13.8691]
[1723519915989,1.27463935,144.23,144.2,19.4169]
[1723519916212,5.5455,144.27,144.22,5.547]
[1723519916367,5.5456,144.26,144.21,5.5473]
[1723519916568,5.5456,144.26,144.2,13.8691]
[1723519916569,50.67169,144.25,144.2,19.4168]
[1723519917092,50.5462,144.25,144.2,19.4168]
[1723519917392,5.5468,144.23,144.18,5.5485]
[1723519917691,0.12549,144.24,144.18,5.5485]
[1723519917888,5.5471,144.22,144.17,36.0282]
[1723519918479,5.67209,144.24,144.19,5.548]
[1723519918690,45.0,144.23,144.19,5.548]
[1723519919460,50.5467,144.23,144.17,36.0279]
[1723519919666,51.82133935,144.23,144.17,30.4793]
[1723519919979,50.5467,144.23,144.18,5.5485]
[1723519920290,51.82133935,144.23,144.18,5.5485]
[1723519920494,5.5471,144.22,144.18,5.5485]
[1723519920677,1.27463935,144.21,144.17,13.8724]
[1723519920998,1.27463935,144.2,144.17,19.4213]
[1723519921297,5.5487,144.18,144.14,13.8749]
[1723519921667,5.5487,144.18,144.14,19.425]
[1723519921866,45.12549,144.21,144.16,13.8729]
[1723519921867,45.0,144.21,144.16,13.8729]
[1723519922090,5.5467,144.23,144.18,5.5482]
[1723519922272,45.0,144.22,144.18,5.5482]
[1723519922495,5.5487,144.18,144.13,19.4261]
[1723519922693,45.0,144.22,144.13,13.8759]
[1723519922924,11.6234,144.27,144.22,5.5468]
[1723519923084,20.0,144.26,144.21,13.8681]
[1723519923287,20.0,144.27,144.22,5.5469]
[1723519923511,20.0,144.27,144.21,13.8681]
[1723519923821,5.5444,144.29,144.25,5.5458]
[1723519924113,5.5444,144.29,144.24,5.546]
[1723519924417,5.5444,144.29,144.23,13.8662]
[1723519924418,5.5451,144.27,144.23,13.8662]
[1723519924712,5.5448,144.28,144.23,19.4127]
[1723519924901,5.5452,144.27,144.23,19.4127]
[1723519925246,6.6602,144.31,144.23,13.8662]
[1723519925247,5.544,144.3,144.23,13.8662]
[1723519925395,1.27463935,144.31,144.23,13.8662]
[1723519925600,5.5444,144.29,144.25,13.8642]
[1723519925800,40.1,144.32,144.22,13.8676]
[1723519925801,20.0,144.31,144.22,13.8676]
[1723519926002,5.547,144.23,144.19,16.0964]
[1723519926230,40.1,144.26,144.19,29.9664]
[1723519926540,40.1,144.26,144.12,0.8292731]
[1723519926541,33.8655,144.25,144.16,13.873]
[1723519926693,0.12549,144.22,144.14,16.0964]
[1723519927016,5.5478,144.2,144.14,16.0964]
[1723519927219,5.5475,144.21,144.16,5.5493]
[1723519927517,5.79808,144.22,144.17,5.5488]
[1723519927726,5.5471,144.22,144.18,5.5485]
[1723519928016,5.5467,144.23,144.18,5.5485]
[1723519928196,5.5467,144.23,144.17,13.8718]
[1723519928396,1.27463935,144.22,144.17,13.8718]
[1723519928593,5.5475,144.21,144.17,13.8718]
[1723519928812,20.0,144.24,144.2,5.5475]
[1723519929007,25.5456,144.26,144.19,13.87]
[1723519929219,22.27998944,144.32,144.18,6.1343]
[1723519929518,5.5447,144.29,144.24,5.5462]
[1723519929833,53.9585,144.32,144.27,5.5451]
[1723519929834,45.6435,144.32,144.27,5.5451]
[1723519929991,5.5437,144.31,144.26,19.4089]
[1723519930193,1.27463935,144.31,144.24,15.7086]
[1723519930391,5.544,144.3,144.25,5.5458]
[1723519930612,5.5444,144.29,144.25,5.5458]
[1723519930803,1.27463935,144.28,144.24,21.2549]
[1723519931315,6.81933935,144.28,144.24,15.7086]
[1723519931513,6.81933935,144.28,144.18,46.2343]
[1723519931514,1.27463935,144.27,144.2,13.8691]
[1723519931816,41.37463935,144.3,144.2,13.8691]
[1723519931990,0.12549,144.29,144.2,13.8691]
[1723519932186,5.5454,144.27,144.22,5.5469]
[1723519932399,5.5456,144.26,144.21,5.5474]
[1723519932598,5.5452,144.27,144.22,5.547]
[1723519932892,5.5456,144.26,144.21,5.5473]
[1723519933092,5.5451,144.27,144.23,5.5463]
[1723519933323,50.5447,144.29,144.24,5.5462]
[1723519933508,48.52148944,144.35,144.26,13.8633]
[1723519933694,40.1,144.35,144.28,13.8612]
[1723519934100,41.37463935,144.35,144.26,6.614]
[1723519934295,5.544,144.31,144.26,12.1591]
[1723519934828,6.81863935,144.3,144.25,19.4104]
[1723519934994,1.27463935,144.29,144.25,19.4104]
[1723519935319,20.0,144.34,144.25,19.4104]
[1723519935522,5.5436,144.31,144.26,5.5454]
[1723519935709,55.23023935,144.35,144.27,13.8622]
[1723519935710,40.1,144.35,144.27,13.8622]
[1723519935913,40.1,144.35,144.29,5.5443]
[1723519935914,25.5424,144.34,144.29,5.5443]
[1723519936116,25.5424,144.34,144.27,19.407]
[1723519936117,5.5428,144.33,144.27,19.407]
[1723519936621,5.5428,144.33,144.28,5.5446]
[1723519937515,5.5423,144.35,144.29,13.8603]
[1723519937704,5.5423,144.35,144.3,5.5439]
[1723519938094,53.9527,144.38,144.29,13.8603]
[1723519938095,21.27463935,144.37,144.29,13.8603]
[1723519938819,5.5433,144.32,144.28,21.2164]
[1723519939018,5.5429,144.33,144.28,21.2164]
[1723519939921,65.37647,144.36,144.28,29.5329]
[1723519940096,5.5424,144.34,144.3,5.5439]
[1723519940309,5.5429,144.33,144.28,35.0775]
[1723519940526,65.25098,144.36,144.28,15.6717]
[1723519940527,5.5439,144.31,144.28,15.6717]
[1723519940820,6.81873935,144.3,144.28,15.6717]
[1723519941026,5.5443,144.29,144.25,19.41]
[1723519941320,5.544,144.3,144.25,19.41]
[1723519941528,5.544,144.3,144.26,5.5454]
[1723519941709,40.1,144.32,144.25,13.8642]
[1723519941710,5.5445,144.29,144.25,13.8642]
[1723519942229,5.544,144.3,144.25,19.41]
[1723519942427,5.5445,144.29,144.25,19.41]
[1723519942613,45.0,144.28,144.23,21.3741]
[1723519942815,45.0,144.28,144.23,15.8275]
[1723519943304,50.5449,144.28,144.23,15.8275]
[1723519943726,5.5452,144.27,144.23,21.374]
[1723519944219,5.66949,144.3,144.24,13.8652]
[1723519944411,0.12549,144.32,144.23,15.8275]
[1723519944749,40.1,144.34,144.27,13.8628]
[1723519944901,5.5437,144.31,144.27,13.8628]
[1723519945101,5.5432,144.32,144.27,19.4076]
[1723519945328,40.1,144.34,144.24,13.8652]
[1723519945511,5.5447,144.28,144.24,13.8652]
[1723519945815,40.1,144.34,144.24,13.8652]
[1723519946146,5.5451,144.27,144.23,21.3741]
[1723519946425,5.5444,144.29,144.25,5.5456]
[1723519946602,5.5447,144.28,144.23,29.6938]
[1723519946804,20.0,144.33,144.25,13.8642]
[1723519947030,45.0,144.32,144.25,13.8642]
[1723519947240,60.60196,144.31,144.24,5.5462]
[1723519947400,0.12549,144.29,144.23,15.8275]
[1723519947604,20.50196,144.29,144.23,15.8275]
[1723519947803,45.0,144.28,144.23,15.8275]
[1723519948009,1.40012935,144.27,144.19,30.3234]
[1723519948233,5.5464,144.24,144.2,5.5477]
[1723519948413,5.5459,144.25,144.2,5.5477]
[1723519949836,5.5465,144.24,144.19,35.8712]
[1723519950223,0.12549,144.24,144.16,13.8731]
[1723519950422,5.5475,144.21,144.16,19.4224]
[1723519950720,50.547,144.23,144.16,13.8731]
[1723519950924,5.5463,144.24,144.2,5.5476]
[1723519951122,5.5463,144.24,144.19,5.5482]
[1723519951448,5.546,144.25,144.2,5.5475]
[1723519951738,5.547,144.23,144.18,13.871]
[1723519952044,20.0,144.27,144.2,13.8692]
[1723519952342,5.5466,144.24,144.2,13.8692]
[1723519952634,5.5467,144.23,144.2,13.8692]
[1723519952935,5.5467,144.23,144.19,5.5479]
[1723519953141,0.12549,144.25,144.19,5.5479]
[1723519953313,5.5465,144.24,144.19,5.5479]
[1723519953937,5.5467,144.23,144.18,5.5485]
[1723519954239,6.82193935,144.22,144.17,19.4209]
[1723519954451,0.12549,144.25,144.15,16.4898]
[1723519954452,60.22549,144.25,144.15,22.0395]
[1723519954613,0.12549,144.21,144.15,16.4898]
[1723519954861,5.5486,144.18,144.15,16.4898]
[1723519955120,5.5483,144.19,144.15,16.4898]
[1723519955724,0.37647,144.21,144.15,16.4898]
[1723519955725,20.37647,144.21,144.15,16.4898]
[1723519955927,45.0,144.18,144.15,16.4898]
[1723519956214,50.5487,144.18,144.15,16.4898]
[1723519956438,50.5485,144.19,144.15,16.4898]
[1723519956643,50.5482,144.19,144.15,16.4898]
[1723519956935,50.5482,144.19,144.15,22.0395]
[1723519957115,0.37647,144.21,144.15,22.0395]
[1723519957116,5.5479,144.2,144.15,22.0395]
[1723519958045,45.6474,144.22,144.15,30.3634]
[1723519958220,5.5471,144.22,144.17,5.5489]
[1723519958544,40.1,144.25,144.16,5.5493]
[1723519958545,5.5474,144.21,144.16,5.5493]
[1723519958722,5.5474,144.21,144.15,30.3638]
[1723519958925,40.1,144.25,144.18,5.5485]
[1723519959136,5.5468,144.23,144.17,13.8719]
[1723519959520,5.5471,144.22,144.18,5.5485]
[1723519959736,5.5471,144.22,144.17,19.4208]
[1723519959937,5.5467,144.23,144.18,5.5485]
[1723519960446,5.548,144.2,144.15,22.0395]
[1723519960640,0.12549,144.21,144.15,16.4898]
[1723519960826,5.5491,144.17,144.15,16.4898]
[1723519961028,5.5486,144.18,144.15,16.4898]
[1723519961620,0.50196,144.21,144.12,0.8292731]
[1723519961835,5.5494,144.16,144.12,0.8292731]
[1723519962019,5.5487,144.18,144.13,5.5504]
[1723519962540,5.92417,144.21,144.16,5.549]
[1723519962744,65.0,144.2,144.15,5.5497]
[1723519962918,70.5479,144.2,144.15,19.4232]
[1723519963253,5.547,144.23,144.17,13.872]
[1723519963545,13.8642,144.26,144.17,13.872]
[1723519963777,40.1,144.25,144.16,5.5492]
[1723519963939,40.1,144.25,144.12,0.8292731]
[1723519964237,40.1,144.25,144.16,13.8729]
[1723519964443,13.8633,144.27,144.2,5.5478]
[1723519964952,5.5471,144.22,144.18,13.8706]
[1723519965242,33.8652,144.25,144.16,5.5491]
[1723519965540,0.12549,144.24,144.16,5.5491]
[1723519965763,5.5475,144.21,144.16,5.5491]
[1723519966213,20.0,144.24,144.17,13.8721]
[1723519966545,25.5464,144.24,144.19,5.5481]
[1723519966737,5.5464,144.24,144.19,5.5481]
[1723519967137,0.12549,144.25,144.17,13.8721]
[1723519967342,40.50196,144.25,144.14,13.8748]
[1723519967554,5.5478,144.2,144.15,5.5495]
[1723519967755,5.5482,144.19,144.15,5.5495]
[1723519968058,0.12549,144.23,144.16,5.5492]
[1723519968273,66.77659935,144.23,144.16,5.5492]
[1723519968735,66.77659935,144.23,144.14,13.8748]
[1723519968936,40.22549,144.21,144.14,13.8748]
[1723519969165,5.5491,144.17,144.12,6.3798731]
[1723519969777,5.5495,144.16,144.12,6.3798731]
[1723519970063,5.5495,144.16,144.12,0.8292731]
[1723519971636,5.5491,144.17,144.12,6.3801731]
[1723519971838,5.5485,144.19,144.14,5.5499]
[1723519972037,5.5485,144.19,144.13,13.8759]
[1723519972253,5.5485,144.19,144.15,5.5496]
[1723519972449,5.5479,144.2,144.15,5.5496]
[1723519972663,5.5485,144.19,144.14,5.5498]
[1723519972872,5.5479,144.2,144.15,5.5495]
[1723519973541,6.2362,144.24,144.16,13.8734]
[1723519973865,6.2362,144.24,144.16,19.4227]
[1723519974447,7.51083935,144.24,144.16,19.4227]
[1723519974744,0.12549,144.22,144.16,13.8734]
[1723519974940,5.5479,144.2,144.16,19.4227]
[1723519975153,6.82283935,144.19,144.13,13.8758]
[1723519975371,5.5487,144.18,144.14,5.5501]
[1723519975563,5.5491,144.17,144.13,19.4262]
[1723519975878,5.5491,144.17,144.13,13.8758]
[1723519976169,5.5486,144.18,144.13,13.8758]
[1723519976373,13.8687,144.21,144.12,0.8292731]
[1723519976374,0.12549,144.22,144.15,13.8737]
[1723519976553,20.0,144.23,144.12,0.8292731]